bitfinex/quotes_ETHUSD_20230831
["timestamp","ask_amount","ask_price","bid_price","bid_amount"]
[1693462820901,0.00512635,1706.3,1706.2,28.1524875]
[1693462821722,0.001,1706.4,1706.2,28.1524875]
[1693462822723,0.00512635,1706.3,1706.2,28.1524875]
[1693462823725,0.001,1706.4,1706.2,28.1524875]
[1693462824828,0.00512635,1706.3,1706.2,28.1524875]
[1693462824999,0.63338551,1706.3,1706.2,28.1524875]
[1693462825727,0.62825916,1706.3,1706.2,29.17130534]
[1693462826227,0.001,1706.4,1706.2,27.54490534]
[1693462826427,0.001,1706.4,1706.2,26.5260875]
[1693462826792,0.00512635,1706.3,1706.2,26.5260875]
[1693462827027,0.00512635,1706.3,1706.2,27.54490606]
[1693462827828,0.001,1706.4,1706.2,27.54490606]
[1693462828032,0.001,1706.4,1706.2,28.1661875]
[1693462828835,0.00512635,1706.3,1706.2,28.1661875]
[1693462829132,0.00512635,1706.3,1706.2,29.18500673]
[1693462829825,0.001,1706.4,1706.2,29.18500673]
[1693462830027,0.001,1706.4,1706.2,28.1661875]
[1693462830927,0.00512635,1706.3,1706.2,28.1661875]
[1693462831224,0.00512635,1706.3,1706.2,29.18500635]
[1693462831854,0.001,1706.4,1706.2,29.18500635]
[1693462832134,0.001,1706.4,1706.2,11.76074]
[1693462832938,0.00673567,1706.3,1706.2,11.76074]
[1693462833104,0.00673567,1706.3,1706.2,12.7795698]
[1693462833836,0.001,1706.4,1706.2,12.7795698]
[1693462834036,0.001,1706.4,1706.2,11.76074]
[1693462834940,0.0067489,1706.3,1706.2,11.76074]
[1693462835240,0.0067489,1706.3,1706.2,12.77957494]
[1693462835832,0.001,1706.4,1706.2,12.77957494]
[1693462836033,0.001,1706.4,1706.2,11.76074]
[1693462836768,0.0067489,1706.3,1706.2,11.76074]
[1693462836968,0.0067489,1706.3,1706.2,12.77957725]
[1693462837769,0.001,1706.4,1706.2,11.76074]
[1693462838841,0.0067489,1706.3,1706.2,11.76074]
[1693462839856,0.001,1706.4,1706.2,11.76074]
[1693462840058,0.71064751,1706.3,1706.2,11.76074]
[1693462840240,0.001,1706.4,1706.2,11.76074]
[1693462840757,0.0067489,1706.3,1706.2,11.76074]
[1693462841837,0.001,1706.4,1706.2,11.76074]
[1693462842776,0.0067489,1706.3,1706.2,11.76074]
[1693462843872,0.001,1706.4,1706.2,11.76074]
[1693462844774,0.0067489,1706.3,1706.2,11.76074]
[1693462845771,0.001,1706.4,1706.2,11.76074]
[1693462846878,0.0067489,1706.3,1706.2,11.76074]
[1693462847852,0.001,1706.4,1706.2,11.76074]
[1693462848770,0.0067489,1706.3,1706.2,11.76074]
[1693462849770,0.001,1706.4,1706.2,11.76074]
[1693462850786,0.0067489,1706.3,1706.2,11.76074]
[1693462851579,0.0067489,1706.3,1706.2,18.640538]
[1693462851786,0.001,1706.4,1706.2,23.30906144]
[1693462851970,0.001,1706.4,1706.2,22.29023344]
[1693462852786,0.00676051,1706.3,1706.2,22.29023344]
[1693462852973,0.00676051,1706.3,1706.2,23.30905922]
[1693462853743,0.001,1706.4,1706.2,23.30905922]
[1693462853949,0.001,1706.4,1706.2,22.29023344]
[1693462854789,0.00676051,1706.3,1706.2,22.29023344]
[1693462854992,0.71740802,1706.3,1706.2,23.30905472]
[1693462855595,0.71740802,1706.3,1706.2,21.74345472]
[1693462857290,0.71740802,1706.3,1706.2,18.64053128]
[1693462878242,0.71740802,1706.3,1706.2,12.77956128]
[1693462884215,0.71740802,1706.3,1706.2,3.91882128]
[1693462889857,0.71740802,1706.3,1706.2,2.9]
[1693462922429,6.57803802,1706.3,1706.2,2.9]
[1693462922600,7.92278782,1706.3,1706.2,2.9]
[1693462927979,2.06215782,1706.3,1706.2,2.9]
[1693463003732,7.92278782,1706.3,1706.2,2.9]
[1693463032008,6.57803802,1706.3,1706.2,2.9]
[1693463035006,5.86707134,1706.3,1706.2,2.9]
[1693463035309,6.56505084,1706.3,1706.2,2.9]
[1693463141210,7.57305084,1706.3,1706.2,2.9]
[1693463144546,22.16779149,1706.3,1706.2,2.9]
[1693463144747,25.55676964,1706.3,1706.2,2.9]
[1693463144948,26.03676964,1706.3,1706.2,2.9]
[1693463145128,29.03676964,1706.3,1706.2,2.9]
[1693463150933,29.03676964,1706.3,1705.4,9.29649113]
[1693463150934,29.03676964,1706.3,1705.4,2.96271748]
[1693463150935,2.90367696,1706.2,1705.4,2.96271748]
[1693463151141,1.008,1705.6,1705.4,1.5441]
[1693463151342,6.87071,1705.7,1705.4,3.0]
[1693463151664,0.83484495,1705.5,1705.4,3.0]
[1693463152045,0.00753212,1705.6,1705.4,3.0]
[1693463152244,0.83484495,1705.5,1705.4,3.0]
[1693463152668,0.00753212,1705.6,1705.4,3.0]
[1693463152967,0.84266419,1705.5,1705.4,3.0]
[1693463153464,0.00751686,1705.5,1705.4,3.0]
[1693463153970,6.87071,1705.7,1705.4,3.0]
[1693463154131,0.687071,1705.6,1705.4,3.0]
[1693463154331,1.52218146,1705.6,1705.4,3.0]
[1693463154966,0.00751528,1705.5,1705.4,3.0]
[1693463155455,0.84250483,1705.5,1705.4,3.0]
[1693463156834,13.57726483,1705.5,1705.3,1.5441]
[1693463157169,5.86407,1705.3,1705.1,1.963]
[1693463157949,0.00749321,1705.2,1705.1,1.963]
[1693463158149,0.00749321,1705.2,1705.1,2.98235505]
[1693463158350,0.00749321,1705.2,1705.1,1.01935505]
[1693463160342,0.00749321,1705.2,1705.0,3.5346]
[1693463160343,5.87190321,1705.2,1705.0,3.5346]
[1693463160555,5.87190321,1705.2,1705.0,2.0128]
[1693463160867,0.00749321,1705.2,1705.0,2.0128]
[1693463161459,0.00749321,1705.2,1704.9,9.9579644]
[1693463161707,5.87193321,1705.2,1705.0,1.01943606]
[1693463161907,7.04553353,1705.2,1705.0,1.01943606]
[1693463162363,1.18109353,1705.2,1705.0,1.01943606]
[1693463162907,1.18109353,1705.2,1705.0,1.63488554]
[1693463163552,7.04551353,1705.2,1705.0,1.63488554]
[1693463163751,7.04551353,1705.2,1704.9,4.57766018]
[1693463163989,5.87191321,1705.2,1705.0,1.01948068]
[1693463166703,5.26022547,1705.2,1705.0,1.63493016]
[1693463166899,0.00719429,1705.1,1705.0,1.63493016]
[1693463167202,1e-08,1705.1,1705.0,1.63493016]
[1693463167903,5.26022547,1705.2,1705.0,1.63493016]
[1693463168994,0.00691759,1705.1,1705.0,1.63493016]
[1693463169747,0.84074844,1705.1,1705.0,1.63493016]
[1693463169947,0.83383085,1705.1,1705.0,1.63493016]
[1693463170203,11.12488547,1705.2,1705.0,1.63493016]
[1693463170403,12.92459402,1705.2,1705.0,1.63493016]
[1693463170690,12.92459402,1705.2,1705.1,1.01947838]
[1693463170976,7.05993402,1705.2,1705.1,1.01947838]
[1693463171479,12.92452402,1705.2,1705.1,1.01947838]
[1693463171779,7.05993402,1705.2,1705.1,1.01947838]
[1693463171961,7.06685897,1705.2,1705.1,1.01947838]
[1693463172163,7.06685897,1705.2,1705.0,1.63225686]
[1693463173303,12.93126897,1705.2,1705.0,1.63225686]
[1693463173865,12.93126897,1705.2,1705.0,2.55142458]
[1693463174391,12.93126897,1705.2,1705.0,1.63225686]
[1693463174567,12.93126897,1705.2,1705.1,1.01947838]
[1693463175365,7.06685897,1705.2,1705.0,2.55142458]
[1693463176795,7.06685897,1705.2,1705.1,1.63225686]
[1693463177295,12.93126897,1705.2,1705.1,0.61277848]
[1693463177620,7.06685897,1705.2,1705.1,0.61277848]
[1693463178295,12.93126897,1705.2,1705.1,0.61277848]
[1693463178486,7.06685897,1705.2,1705.1,0.61277848]
[1693463179307,12.93126897,1705.2,1705.1,0.61277848]
[1693463179869,7.06685897,1705.2,1705.1,0.61277848]
[1693463180577,12.93126897,1705.2,1705.1,0.61277848]
[1693463180778,7.06685897,1705.2,1705.1,0.61277848]
[1693463180973,7.06685897,1705.2,1705.1,1.63225686]
[1693463181175,7.06685897,1705.2,1705.1,0.61277848]
[1693463181788,12.93126897,1705.2,1705.1,0.61277848]
[1693463181982,7.06685897,1705.2,1705.1,0.61277848]
[1693463183114,12.93126897,1705.2,1705.1,0.61277848]
[1693463184614,12.93126897,1705.2,1705.1,1.5319462]
[1693463184911,13.76181696,1705.2,1705.1,1.5319462]
[1693463185154,13.76181696,1705.2,1705.1,0.61277848]
[1693463185311,13.76181696,1705.2,1705.1,1.5319462]
[1693463186296,13.76181696,1705.2,1705.1,0.91916772]
[1693463187125,14.36600149,1705.2,1705.1,0.91916772]
[1693463190519,14.36600149,1705.2,1705.1,1.22555696]
[1693463190729,14.36600149,1705.2,1705.1,2.24503534]
[1693463190921,14.36600149,1705.2,1705.1,2.14700987]
[1693463191603,14.36600149,1705.2,1705.1,1.94093129]
[1693463191808,20.23041149,1705.2,1705.1,1.94093129]
[1693463192010,14.36600149,1705.2,1705.1,2.55539357]
[1693463192215,14.36600149,1705.2,1705.1,1.53591519]
[1693463192794,20.23041149,1705.2,1705.1,1.53591519]
[1693463192994,14.36600149,1705.2,1705.1,1.53591519]
[1693463193221,14.36600149,1705.2,1705.1,0.61446228]
[1693463193430,21.23841149,1705.2,1705.1,0.61446228]
[1693463193921,21.23841149,1705.2,1705.1,1.63394066]
[1693463194098,21.23841149,1705.2,1705.1,0.61446228]
[1693463194825,15.37400149,1705.2,1705.1,1.63394066]
[1693463195225,15.37400149,1705.2,1705.1,0.61446228]
[1693463196325,21.23841149,1705.2,1705.1,0.61446228]
[1693463197629,21.23841149,1705.2,1705.1,1.63394066]
[1693463198128,21.23841149,1705.2,1705.1,0.61446228]
[1693463200172,15.37400149,1705.2,1705.1,0.61446228]
[1693463200430,15.37400149,1705.2,1705.1,1.01947838]
[1693463200594,15.37400149,1705.2,1705.0,1.53591519]
[1693463201032,15.37400149,1705.2,1705.0,2.55539357]
[1693463201342,15.37400149,1705.2,1705.1,1.01947838]
[1693463201500,21.23841149,1705.2,1705.1,1.01947838]
[1693463201696,21.23841149,1705.2,1705.0,1.63394066]
[1693463201936,2.12384115,1705.1,1705.0,1.63394066]
[1693463202137,13.85334115,1705.1,1705.0,1.63394066]
[1693463202438,14.67939519,1705.1,1705.0,1.63394066]
[1693463202938,14.686316,1705.1,1705.0,1.01947838]
[1693463204135,12.56247485,1705.1,1705.0,1.01947838]
[1693463205230,13.57047485,1705.1,1704.8,1.53591519]
[1693463205450,13.57047485,1705.1,1704.8,3.15606714]
[1693463205653,13.57047485,1705.1,1704.9,1.01960486]
[1693463207680,1.008,1705.0,1704.9,1.01960486]
[1693463207871,6.8731,1705.0,1704.9,1.01960486]
[1693463208161,8.5890419,1705.0,1704.9,1.01960486]
[1693463208760,14.4541419,1705.0,1704.9,1.01960486]
[1693463208926,14.4541419,1705.0,1704.9,3.91960486]
[1693463209131,20.3192419,1705.0,1704.9,2.9]
[1693463209332,23.19272255,1705.0,1704.9,2.9]
[1693463214993,24.01709238,1705.0,1704.9,2.9]
[1693463223403,24.49709238,1705.0,1704.9,2.9]
[1693463258037,24.49459238,1705.0,1704.9,2.9]
[1693463319565,22.30556393,1705.0,1704.9,2.9]
[1693463358352,23.31356393,1705.0,1704.9,2.9]
[1693463358988,22.30806393,1705.0,1704.9,2.9]
[1693463359389,22.78806393,1705.0,1704.9,2.9]
[1693463360322,23.79606393,1705.0,1704.9,2.9]
[1693463360525,27.10957603,1705.0,1704.9,2.9]
[1693463374038,30.10957603,1705.0,1704.9,2.9]
[1693463386770,29.10157603,1705.0,1704.9,2.9]
[1693463388061,29.1015809,1705.0,1704.9,2.9]
[1693463395076,28.27721107,1705.0,1704.9,2.9]
[1693463395369,29.0628066,1705.0,1704.9,2.9]
[1693463398739,29.02389255,1705.0,1704.9,2.9]
[1693463406275,25.71038045,1705.0,1704.9,2.9]
[1693463406451,25.23038045,1705.0,1704.9,2.9]
[1693463413526,22.3568998,1705.0,1704.9,2.9]
[1693463413665,13.4917998,1705.0,1704.9,2.9]
[1693463413865,19.3568998,1705.0,1704.9,2.9]
[1693463415273,22.22648349,1705.0,1704.9,2.9]
[1693463415528,22.70648349,1705.0,1704.9,2.9]
[1693463418728,19.8368998,1705.0,1704.9,2.9]
[1693463421492,19.3568998,1705.0,1704.9,2.9]
[1693463436743,0.79251385,1705.0,1704.9,2.9]
[1693463437252,0.79251385,1705.0,1704.9,8.76544]
[1693463437959,0.79251385,1705.0,1704.9,5.247997]
[1693463438159,0.79251385,1705.0,1704.9,6.9459207]
[1693463438557,5.86381,1705.4,1704.9,28.72828135]
[1693463438757,5.86381,1705.4,1705.0,9.04348065]
[1693463438926,5.86381,1705.4,1705.0,20.77340065]
[1693463439125,5.86381,1705.4,1705.1,2.07734007]
[1693463439441,5.86381,1705.4,1705.1,4.95082072]
[1693463439651,0.00541458,1705.3,1705.1,4.95082072]
[1693463440646,5.86409,1705.3,1705.1,4.95082072]
[1693463441050,11.72782,1705.4,1705.1,4.95082072]
[1693463441258,11.72782,1705.4,1705.2,0.49508207]
[1693463441630,0.00541583,1705.3,1705.2,0.49508207]
[1693463442561,11.72782,1705.4,1705.2,0.49508207]
[1693463443548,0.00540956,1705.3,1705.2,0.49508207]
[1693463444691,5.86286,1705.7,1705.2,15.09738272]
[1693463444902,6.87039,1705.8,1705.3,4.38321892]
[1693463444903,5.86239,1705.8,1705.3,4.38321892]
[1693463445194,5.86239,1705.8,1705.4,11.72721]
[1693463445525,0.00503345,1705.7,1705.4,11.72721]
[1693463446476,0.80658563,1705.6,1705.4,11.72721]
[1693463446652,0.00503345,1705.7,1705.5,1.172721]
[1693463447474,0.00503345,1705.7,1705.5,3.519885]
[1693463449590,0.80669562,1705.6,1705.5,3.519885]
[1693463449944,0.00503345,1705.7,1705.5,3.519885]
[1693463452288,0.00503345,1705.7,1705.5,9.383225]
[1693463452594,5.86774345,1705.7,1705.6,0.9383225]
[1693463453770,5.86774345,1705.7,1705.5,3.519885]
[1693463454345,5.86774345,1705.7,1705.5,9.383235]
[1693463454541,0.00503345,1705.7,1705.5,9.383235]
[1693463454743,0.00503345,1705.7,1705.5,22.117995]
[1693463455054,0.00503345,1705.7,1705.5,24.99147565]
[1693463455254,0.00503345,1705.7,1705.6,14.22520757]
[1693463455700,5.86167,1706.0,1705.6,14.22520757]
[1693463456091,0.92865898,1705.9,1705.6,14.22520757]
[1693463456483,0.00462671,1705.8,1705.6,14.22520757]
[1693463463015,0.92865898,1705.9,1705.6,14.22520757]
[1693463463189,0.92865898,1705.9,1705.7,1.06151987]
[1693463463400,0.92865898,1705.9,1705.7,6.92396987]
[1693463463600,0.004436,1705.8,1705.7,6.92396987]
[1693463464524,13.44782,1706.1,1705.7,6.92396987]
[1693463464705,0.92862297,1705.8,1705.7,6.92396987]
[1693463464906,13.44782,1706.1,1705.7,6.92396987]
[1693463465217,13.44782,1706.1,1705.8,0.69239699]
[1693463465588,0.0044507,1706.0,1705.8,0.69239699]
[1693463466805,5.8661707,1706.0,1705.8,0.69239699]
[1693463472396,0.0044507,1706.0,1705.8,0.69239699]
[1693463474710,5.8661507,1706.0,1705.8,0.69239699]
[1693463474913,5.8661507,1706.0,1705.7,6.92396987]
[1693463479637,0.928439,1705.9,1705.7,6.92396987]
[1693463480541,0.00443725,1705.8,1705.7,7.54018295]
[1693463480711,0.00443725,1705.8,1705.7,8.55942243]
[1693463483717,0.00443725,1705.8,1705.7,9.48374205]
[1693463485823,0.00443725,1705.8,1705.7,8.55942243]
[1693463486974,0.00443725,1705.8,1705.7,9.48374205]
[1693463487553,0.00443725,1705.8,1705.7,8.86752897]
[1693463487751,0.00443725,1705.8,1705.7,8.55773653]
[1693463487921,0.00443725,1705.8,1705.7,9.48205615]
[1693463488321,0.00443725,1705.8,1705.7,8.55773653]
[1693463489558,0.00443725,1705.8,1705.7,9.48205615]
[1693463489725,0.00443725,1705.8,1705.7,8.55773653]
[1693463492359,0.00443725,1705.8,1705.7,1.63376666]
[1693463492667,0.00443725,1705.8,1705.7,1.01923948]
[1693463494286,0.88631805,1705.8,1705.7,1.01923948]
[1693463495652,0.88631805,1705.8,1705.6,11.72567]
[1693463497907,0.88631805,1705.8,1705.6,5.86283]
[1693463505829,0.88631805,1705.8,1705.6,14.0094984]
[1693463506134,0.88631805,1705.8,1705.6,23.33274391]
[1693463512715,0.88631805,1705.8,1705.6,22.74600905]
[1693463513904,0.88631805,1705.8,1705.6,16.88297905]
[1693463516271,5.86167,1706.0,1705.6,16.88297905]
[1693463516569,5.86167,1706.0,1705.7,1.68829791]
[1693463516753,5.86167,1706.0,1705.7,7.55090791]
[1693463518053,7.48517,1706.0,1705.7,7.55090791]
[1693463524137,0.93105242,1705.9,1705.7,7.55090791]
[1693463539703,0.93105242,1705.9,1705.6,8.1464684]
[1693463539704,6.79308242,1705.9,1705.6,8.1464684]
[1693463540011,6.79308242,1705.9,1705.6,5.86283]
[1693463541713,8.45218242,1705.9,1705.6,5.86283]
[1693463553522,6.79308242,1705.9,1705.6,5.86283]
[1693463553732,0.93105242,1705.9,1705.7,2.87348065]
[1693463553901,0.93105242,1705.9,1705.8,11.7247]
[1693463554097,0.93105242,1705.9,1705.8,13.77077607]
[1693463554297,15.27192,1706.2,1705.8,13.77077607]
[1693463554492,0.89799964,1705.9,1705.8,7.90842607]
[1693463554903,11.72294,1706.1,1705.8,7.90842607]
[1693463555089,11.72294,1706.1,1705.8,2.04607607]
[1693463556725,5.86139,1706.1,1705.8,2.04607607]
[1693463560050,5.86139,1706.1,1705.8,7.90840607]
[1693463569672,0.89729786,1706.0,1705.8,7.90840607]
[1693463569876,0.89729786,1706.0,1705.9,0.79084061]
[1693463576388,0.89729786,1706.0,1705.8,7.90840607]
[1693463583977,0.89729786,1706.0,1705.8,13.77075607]
[1693463584803,5.86111,1706.2,1705.8,13.77075607]
[1693463584968,5.86111,1706.2,1705.8,15.88445607]
[1693463585168,0.89704631,1705.9,1705.8,15.88445607]
[1693463585380,11.72224,1706.2,1705.8,15.88445607]
[1693463585578,7.57751,1706.2,1705.8,13.77075607]
[1693463585775,7.57751,1706.2,1705.9,1.37707561]
[1693463588503,13.43864,1706.2,1705.9,1.37707561]
[1693463588705,0.00413307,1706.1,1705.9,1.37707561]
[1693463589607,13.43864,1706.2,1705.9,1.37707561]
[1693463590606,0.00413307,1706.1,1705.9,1.37707561]
[1693463590808,5.86547307,1706.1,1705.9,1.37707561]
[1693463599533,0.89729786,1706.0,1705.9,1.37707561]
[1693463600637,0.90142358,1706.0,1705.9,1.37707561]
[1693463615378,0.90142358,1706.0,1705.8,11.48290607]
[1693463616460,0.90142358,1706.0,1705.8,9.96040607]
[1693463620286,0.90142358,1706.0,1705.8,7.90840607]
[1693463620447,6.76316358,1706.0,1705.7,2.9]
[1693463620652,12.62490358,1706.0,1705.7,2.9]
[1693463621289,14.24800358,1706.0,1705.7,2.9]
[1693463632339,14.24800358,1706.0,1705.7,8.76268]
[1693463632485,14.24800358,1706.0,1705.7,10.225234]
[1693463634423,14.24800358,1706.0,1705.7,8.76268]
[1693463638132,8.38626358,1706.0,1705.7,8.76268]
[1693463647036,8.38626358,1706.0,1705.7,9.5251]
[1693463661491,6.76316358,1706.0,1705.7,9.5251]
[1693463669995,0.90142358,1706.0,1705.7,9.5251]
[1693463670384,0.90142358,1706.0,1705.8,0.95251]
[1693463670796,6.76309358,1706.0,1705.8,0.95251]
[1693463682306,0.90142358,1706.0,1705.8,6.8148]
[1693463691043,0.90142358,1706.0,1705.9,1.01898547]
[1693463691316,0.90142358,1706.0,1705.9,12.74298037]
[1693463691486,0.90142358,1706.0,1705.9,13.67977804]
[1693463691922,0.90142358,1706.0,1705.9,14.69875971]
[1693463692314,0.90142358,1706.0,1705.9,13.67977804]
[1693463696506,0.90142358,1706.0,1705.9,19.54177804]
[1693463699634,0.90142358,1706.0,1705.9,23.42325869]
[1693463700126,0.90142358,1706.0,1705.9,24.00955869]
[1693463700307,0.90142358,1706.0,1705.9,27.00955869]
[1693463701488,0.90142358,1706.0,1705.9,28.02851642]
[1693463705243,0.90142358,1706.0,1705.9,27.00955869]
[1693463715467,0.90142358,1706.0,1705.9,28.02848243]
[1693463716072,0.00412572,1706.0,1705.9,28.02848243]
[1693463716239,0.00412572,1706.0,1705.9,30.11078243]
[1693463716669,1.6415,1706.4,1705.9,30.11078243]
[1693463716872,1.6415,1706.4,1706.0,9.89255889]
[1693463717166,0.89726477,1706.3,1706.1,19.17805]
[1693463717349,1.6415,1706.4,1706.1,19.17805]
[1693463717350,1.6415,1706.4,1706.1,22.05153065]
[1693463717663,1.6415,1706.4,1706.2,2.87348065]
[1693463717846,14.6872717,1706.8,1706.3,11.72087]
[1693463718049,14.6872717,1706.8,1706.4,1.172087]
[1693463718674,16.3357717,1706.8,1706.4,1.172087]
[1693463718882,16.3357717,1706.8,1706.3,11.72087]
[1693463719383,1.6485,1706.7,1706.3,14.066826]
[1693463719576,8.31687304,1706.7,1706.3,14.066826]
[1693463720551,0.00385727,1706.6,1706.3,14.066826]
[1693463721659,8.31687304,1706.7,1706.3,14.066826]
[1693463721866,8.31687304,1706.7,1706.3,16.34694767]
[1693463722668,0.00386228,1706.6,1706.3,22.20757767]
[1693463723279,0.00386228,1706.6,1706.3,24.29377767]
[1693463723669,2.45759304,1706.7,1706.3,24.29377767]
[1693463724557,0.00385727,1706.6,1706.3,22.013656]
[1693463724759,0.00385727,1706.6,1706.3,19.927456]
[1693463725574,8.31689304,1706.7,1706.3,19.927456]
[1693463726566,0.00385727,1706.6,1706.3,19.927456]
[1693463727597,8.31689304,1706.7,1706.3,19.927456]
[1693463727893,8.31689304,1706.7,1706.3,22.69685967]
[1693463728666,0.00385727,1706.6,1706.3,22.69685967]
[1693463729594,8.31689304,1706.7,1706.3,22.69685967]
[1693463730700,0.00385727,1706.6,1706.3,22.69685967]
[1693463731666,8.31689304,1706.7,1706.3,22.69685967]
[1693463732681,0.00471016,1706.6,1706.3,22.69685967]
[1693463733702,8.31689304,1706.7,1706.3,22.69685967]
[1693463734622,0.00471016,1706.6,1706.3,22.69685967]
[1693463734921,0.81830442,1706.6,1706.3,22.69685967]
[1693463735519,2.44730442,1706.6,1706.3,22.69685967]
[1693463743094,2.44730442,1706.6,1706.3,10.97570967]
[1693463746506,2.44730442,1706.6,1706.3,8.206306]
[1693463749516,2.44730442,1706.6,1706.3,2.345956]
[1693463749517,8.30691442,1706.6,1706.3,2.345956]
[1693463762066,9.31491442,1706.6,1706.3,2.345956]
[1693463765484,9.31491442,1706.6,1706.3,8.206576]
[1693463771079,15.17452442,1706.6,1706.3,2.345956]
[1693463771283,1.51745244,1706.5,1706.2,2.9]
[1693463771582,7.37759244,1706.5,1706.2,2.9]
[1693463771747,0.75009853,1706.4,1706.2,2.9]
[1693463772484,0.75009853,1706.4,1706.2,8.76097]
[1693463787507,0.75009853,1706.4,1706.2,14.62194]
[1693463787801,0.75009853,1706.4,1706.2,17.3202046]
[1693463821104,0.75009853,1706.4,1706.2,23.1811746]
[1693463824512,1.72169161,1706.5,1706.2,23.1811746]
[1693463824697,0.75856258,1706.3,1706.2,23.1811746]
[1693463824896,1.72169161,1706.5,1706.2,24.19997283]
[1693463825094,1.72169161,1706.5,1706.2,23.1811746]
[1693463827009,1.72169161,1706.5,1706.3,2.31811746]
[1693463827309,1.72169161,1706.5,1706.4,5.86029]
[1693463827871,5.85933,1706.7,1706.4,5.86029]
[1693463829809,7.51443,1706.7,1706.4,5.86029]
[1693463832512,0.797699,1706.6,1706.4,5.86029]
[1693463833087,13.3739,1706.7,1706.4,5.86029]
[1693463834112,7.51443,1706.7,1706.4,5.86029]
[1693463839919,0.79130376,1706.6,1706.4,5.86029]
[1693463840321,13.3739,1706.7,1706.4,5.86029]
[1693463840519,15.59349017,1706.7,1706.4,5.86029]
[1693463845028,9.73402017,1706.7,1706.4,5.86029]
[1693463848328,7.51443,1706.7,1706.4,5.86029]
[1693463850557,5.85933,1706.7,1706.4,5.86029]
[1693463852155,7.53653,1706.7,1706.4,5.86029]
[1693463854364,0.7913229,1706.6,1706.4,5.86029]
[1693463854864,13.39607,1706.7,1706.4,5.86029]
[1693463860870,15.61787717,1706.7,1706.3,5.86042]
[1693463861065,16.62587717,1706.7,1706.3,5.86042]
[1693463869376,0.79109348,1706.6,1706.3,5.86042]
[1693463869550,6.65074348,1706.6,1706.3,5.86042]
[1693463869751,5.85965,1706.6,1706.3,5.86042]
[1693463871581,7.55545,1706.6,1706.3,5.86042]
[1693463882692,5.85965,1706.6,1706.3,5.86042]
[1693463884504,1.08420428,1706.5,1706.3,5.86042]
[1693463884692,1.08420428,1706.5,1706.3,7.322554]
[1693463900617,1.08420428,1706.5,1706.3,5.86042]
[1693463911533,6.94417428,1706.5,1706.2,8.76081]
[1693463911843,6.94417428,1706.5,1706.2,8.76079]
[1693463912018,8.66547428,1706.5,1706.2,8.76079]
[1693463916342,8.66547428,1706.5,1706.2,5.86079]
[1693463918051,2.80550428,1706.5,1706.2,5.86079]
[1693463918238,2.80550428,1706.5,1706.2,11.72176]
[1693463918415,2.80550428,1706.5,1706.2,14.19216698]
[1693463920520,2.80550428,1706.5,1706.2,17.09216698]
[1693463938414,1.08420428,1706.5,1706.2,17.09216698]
[1693463954012,1.08420428,1706.5,1706.2,17.55900026]
[1693463982697,1.08420428,1706.5,1706.2,23.41997026]
[1693463986100,2.69850428,1706.5,1706.2,23.41997026]
[1693464002327,2.69850428,1706.5,1706.3,1.01876721]
[1693464002526,2.69850428,1706.5,1706.4,5.86029]
[1693464003629,1.08420428,1706.5,1706.4,5.86029]
[1693464024342,1.08420428,1706.5,1706.4,8.76029]
[1693464031553,0.80992265,1706.5,1706.4,8.76029]
[1693464053256,11.71881,1706.7,1706.4,8.76029]
[1693464053460,7.91344317,1706.7,1706.4,8.76029]
[1693464053790,0.81006908,1706.6,1706.4,8.76029]
[1693464054268,15.40521317,1706.7,1706.4,8.76029]
[1693464058198,9.54574317,1706.7,1706.4,8.76029]
[1693464064714,0.80883476,1706.6,1706.4,8.76029]
[1693464065214,7.49168,1706.7,1706.4,8.76029]
[1693464065409,9.12303017,1706.7,1706.4,8.76029]
[1693464079351,7.49168,1706.7,1706.4,8.76029]
[1693464079552,0.80878029,1706.6,1706.4,8.76029]
[1693464079946,7.49168,1706.7,1706.4,8.76029]
[1693464094577,0.88356084,1706.6,1706.4,8.76029]
[1693464095171,13.35111,1706.7,1706.4,8.76029]
[1693464096275,7.49168,1706.7,1706.4,8.76029]
[1693464102393,7.49168,1706.7,1706.4,14.62058]
[1693464103386,5.85938,1706.7,1706.4,14.62058]
[1693464109698,0.88356084,1706.6,1706.4,14.62058]
[1693464109993,5.85938,1706.7,1706.4,14.62058]
[1693464110501,12.7452517,1706.8,1706.4,17.026442]
[1693464112199,12.7452517,1706.8,1706.4,18.666342]
[1693464119297,14.4029517,1706.8,1706.4,18.666342]
[1693464124329,0.88363419,1706.7,1706.4,18.666342]
[1693464125232,0.88363419,1706.7,1706.4,22.886732]
[1693464125401,0.88363419,1706.7,1706.5,7.18878119]
[1693464125598,0.88363419,1706.7,1706.6,17.5788]
[1693464129931,0.88363419,1706.7,1706.6,20.45228065]
[1693464135042,0.88363419,1706.7,1706.6,23.45228065]
[1693464140764,0.88363419,1706.7,1706.6,23.91019973]
[1693464140973,0.88363419,1706.7,1706.6,25.45879124]
[1693464149787,0.88363419,1706.7,1706.6,26.46679124]
[1693464150839,0.88363419,1706.7,1706.6,28.10044324]
[1693464151034,1.0271017,1706.8,1706.7,3.0]
[1693464151348,1.0271017,1706.8,1706.7,28.67091265]
[1693464151546,1.0271017,1706.8,1706.7,31.07677465]
[1693464151873,1.0271017,1706.8,1706.7,32.08477465]
[1693464152375,1.0271017,1706.8,1706.7,33.79597465]
[1693464153277,0.41609848,1706.8,1706.7,33.79597465]
[1693464154590,0.41609848,1706.8,1706.7,35.32407101]
[1693464154844,0.41609848,1706.8,1706.7,33.79597465]
[1693464155266,0.41609848,1706.8,1706.7,34.71878992]
[1693464155737,0.41609848,1706.8,1706.7,34.10357974]
[1693464155941,0.41609848,1706.8,1706.7,34.71598037]
[1693464156167,0.41609848,1706.8,1706.7,34.10357974]
[1693464157382,1e-08,1706.8,1706.7,34.10357974]
[1693464157956,1e-08,1706.8,1706.7,35.6316761]
[1693464163808,1e-08,1706.8,1706.7,36.86209646]
[1693464168187,1e-08,1706.8,1706.7,35.93928119]
[1693464168390,1e-08,1706.8,1706.7,35.32968829]
[1693464168689,1e-08,1706.8,1706.7,36.85778465]
[1693464168883,1e-08,1706.8,1706.7,35.93928119]
[1693464175825,1e-08,1706.8,1706.7,35.33016895]
[1693464175993,1e-08,1706.8,1706.7,35.93928119]
[1693464177193,0.101,1707.0,1706.8,0.00199999]
[1693464177404,0.101,1707.0,1706.9,22.04319065]
[1693464177617,0.101,1707.0,1706.9,23.06163247]
[1693464178006,0.101,1707.0,1706.9,26.06163247]
[1693464178689,0.101,1707.0,1706.9,25.05363247]
[1693464184660,0.89750296,1707.0,1706.9,25.05363247]
[1693464187339,0.89750296,1707.0,1706.9,26.60222398]